[Event "Charlotte Summer IM C 2022"]
[Site "Charlotte"]
[Date "2022.07.25"]
[Round "1.1"]
[White "Venkat, Raghav"]
[Black "Huston, Gus"]
[Result "0-1"]
[ECO "C50"]
[WhiteElo "2227"]
[BlackElo "2282"]
[Annotator "TA"]
[PlyCount "70"]
[EventDate "2022.07.24"]
[EventType "tourn"]
[EventCountry "USA"]
[SourceTitle "playchess.com"]
[Source "ChessBase"]
[SourceQuality "1"]
[TimeControl "5400+30"]

{[%evp 13,70,-25,-23,-30,-29,-50,-48,-50,-47,-56,-28,-96,0,0,0,0,-12,-110,-101,-153,-145,-149,-145,-133,-116,-145,-145,-208,-204,-227,-223,-284,-277,-276,-262,-277,-280,-416,-384,-401,-394,-577,-326,-344,0,-596,-471,-657,-458,-619,-574,-656,-668,-661,-622,-666,-538,-29997,-29998]} 1. e4 {[%emt 0:02:23]} e5 {[%emt 0:00:25]} 2. Nf3 {[%emt 0:00:49]} Nc6 {[%emt 0:00:02]} 3. Bc4 {[%emt 0:00:13]} Bc5 {[%emt 0:00:08]} 4. O-O {[%emt 0:00:06]} Nf6 {[%emt 0:00:09]} 5. d4 {[%emt 0:02:55]} Bxd4 {[%emt 0:00:22]} 6. Nxd4 {[%emt 0:00:05]} Nxd4 {[%emt 0:00:07]} 7. Bg5 {[%emt 0:00:03]} h6 {[%emt 0:01:59]} 8. Bh4 {[%emt 0:02:06] C50: Hungarian Defence and Giuoco Pianissimo.} Qe7 {[%emt 0:03:56]} 9. Nc3 {[%emt 0:05:15] Black must now prevent Nd5.} g5 {[%emt 0:05:46]} 10. Bg3 {[%emt 0:00:11][%cal Of2f4] Black is slightly better.} d6 {[%emt 0:10:58]} 11. f4 {[%emt 0:01:53] [#]} gxf4 $146 {[%emt 0:09:36]} ({Predecessor:} 11... Bd7 12. fxe5 dxe5 13. Bxf7+ Qxf7 14. Bxe5 Ne6 15. Bxf6 O-O 16. Nd5 Qe8 17. Be5 Rxf1+ 18. Qxf1 Qd8 19. Nf6+ Kf7 20. Nxd7+ Nf4 21. Bxf4 Qxd7 {1-0 (21) Rosenhain,R (1757)-Delere,A (1590) Forchheim 2014}) 12. Bh4 {[%emt 0:03:19] [#]} (12. Bxf4 $11 {remains equal.} Rg8 13. Bg3 (13. Bxh6 Bh3 $17)) 12... Be6 {[%emt 0:08:29]} (12... Rg8 $1 $17 {Threatens to win with ...Bh3.} 13. Nd5 Nxd5 14. Bxe7 Ne3) 13. Rxf4 $1 $11 {[%emt 0:00:41]} exf4 {[%emt 0:00:46]} 14. Qxd4 {[%emt 0:00:06]} Bxc4 {[%emt 0:00:45][%cal Be6c4,Bc4d5,Bd5e4][%mdl 32]} 15. Bxf6 {[%emt 0:00:20]} (15. Qxc4 $11 {keeps the balance.} Qe5 16. Qb5+ Qxb5 17. Nxb5 Nxe4 18. Nxc7+ Kd7 19. Nxa8) 15... c5 $17 {[%emt 0:00:25] White is on the road to losing.} 16. Nd5 {[%emt 0:22:19] [#]} (16. Qxc4 $2 Qxf6 17. Qd3 (17. Qb5+ $2 Kf8 $19) 17... O-O-O $19) (16. Bxe7 $142 cxd4 17. Bf6) 16... Bxd5 $1 {[%emt 0:09:25]} 17. Qc3 {[%emt 0:00:04] [#]} Qxe4 {[%emt 0:09:27][%csl Gd5][%cal Re4g2]} 18. Re1 {[%emt 0:00:17] [#]} Rg8 $1 {[%emt 0:00:20]} 19. Rxe4+ {[%emt 0:03:34]} Bxe4 {[%emt 0:00:02]} 20. g3 {[%emt 0:06:26]} (20. Qc4 $17 {was called for.} Bxg2 21. Kf2) 20... fxg3 $19 {[%emt 0:04:28]} 21. hxg3 {[%emt 0:01:30]} Kd7 {[%emt 0:05:26]} 22. Qb3 {[%emt 0:13:13]} Raf8 {[%emt 0:07:23]} 23. Qa4+ {[%emt 0:03:33]} Bc6 {[%emt 0:00:04]} 24. Qf4 {[%emt 0:00:42]} Rg6 {[%emt 0:02:43]} 25. Qf5+ {[%emt 0:07:35]} (25. b4 $142 cxb4 26. Kf2) 25... Kc7 {[%emt 0:19:49]} 26. Kf2 {[%emt 0:04:03]} Re8 {[%emt 0:00:00] Inhibits Be7. Strongly threatening ...Bb5.} 27. Bc3 {[%emt 0:07:42]} (27. Qf4 $142) 27... Re7 {[%emt 0:00:00]} 28. Bf6 {[%emt 0:13:07]} Re8 {[%emt 0:00:00]} 29. Bc3 {[%emt 0:00:00]} Rge6 {[%emt 0:00:00]} 30. Qxf7+ {[%emt 0:00:00]} R8e7 {[%emt 0:00:00]} 31. Qh5 {[%emt 0:00:00]} Re3 {[%emt 0:00:00]} 32. Bf6 {[%emt 0:00:00]} R7e6 {[%emt 0:03:30] And now ...Rf3+ would win.} 33. Qf7+ {[%emt 0:00:00]} Kb6 {[%emt 0:00:00] ( -> ...Re2+)} 34. Bd8+ {[%emt 0:00:00]} Ka6 {[%emt 0:00:00]} 35. Qc7 {[%emt 0:00:00][%csl Gd8][%cal Rc7a5]} Re2+ {[%emt 0:00:00] Weighted Error Value: White=0.43/Black=0.51} 0-1

[Event "Charlotte Summer IM C 2022"]
[Site "Charlotte"]
[Date "2022.07.25"]
[Round "1.2"]
[White "Rodrigue-Lemieux, Shawn"]
[Black "Wen, Tommy"]
[Result "1-0"]
[ECO "A11"]
[WhiteElo "2366"]
[BlackElo "2040"]
[Annotator "TA"]
[PlyCount "95"]
[EventDate "2022.07.24"]
[EventType "tourn"]
[EventCountry "USA"]
[SourceTitle "playchess.com"]
[Source "ChessBase"]
[SourceQuality "1"]
[TimeControl "5400+30"]

{[%evp 12,95,16,13,40,25,19,-45,-30,-36,-36,-38,-37,-22,-8,-14,-22,-23,-42,-35,-28,-13,-12,-34,-5,-13,26,19,23,27,26,18,17,23,20,13,36,36,25,26,37,13,18,0,0,0,14,0,0,0,0,0,0,0,37,36,38,35,35,35,35,35,32,29,34,20,20,4,20,16,18,21,114,115,121,121,121,121,156,153,151,154,144,135,154,143]} 1. c4 {[%emt 0:00:06]} c6 {[%emt 0:00:07]} 2. Nf3 {[%emt 0:00:13]} Nf6 {[%emt 0:00:15]} 3. g3 {[%emt 0:00:11]} d5 {[%emt 0:00:05]} 4. Bg2 {[%emt 0:00:08]} dxc4 {[%emt 0:00:11]} 5. O-O {[%emt 0:00:11]} Nbd7 {[%emt 0:00:09]} 6. Na3 {[%emt 0:01:48]} Nb6 {[%emt 0:00:22]} 7. Qc2 {[%emt 0:00:19]} Be6 {[%emt 0:00:46] A11: English Opening: 1...c6.} 8. Ng5 {[%emt 0:00:58]} Bg4 {[%emt 0:01:06]} 9. f3 {[%emt 0:13:00]} ({White should play} 9. Nxc4 $11 Bxe2 10. Ne5) 9... Bh5 {[%emt 0:11:28] Black is slightly better.} (9... e6 {is more complex.} 10. Nxf7 Kxf7 11. fxg4 Bxa3 12. bxa3 Qd4+) 10. Nxc4 {[%emt 0:04:15]} Qd4+ {[%emt 0:07:51]} 11. Ne3 {[%emt 0:00:07]} e6 {[%emt 0:07:40]} 12. Kh1 {[%emt 0:12:33] [#]} Qc5 $146 {[%emt 0:09:39]} ({Predecessor:} 12... Be7 13. d3 Nfd5 14. Nd1 O-O 15. a3 Bg6 16. Ne4 Nd7 17. Rb1 a5 18. b3 Qb6 {1-0 (64) Howell,D (2663)-Lupulescu,C (2626) Jerusalem 2015}) 13. Nh3 {[%emt 0:03:12]} Nfd5 {[%emt 0:13:20]} 14. Qxc5 {[%emt 0:06:01]} Bxc5 {[%emt 0:00:04]} 15. Nc2 {[%emt 0:00:11]} Nb4 {[%emt 0:04:36]} 16. Nxb4 {[%emt 0:19:19]} Bxb4 {[%emt 0:00:16]} 17. d4 {[%emt 0:00:05]} Rd8 {[%emt 0:08:14]} 18. Be3 {[%emt 0:06:14]} Nc4 {[%emt 0:02:31]} 19. Bf2 {[%emt 0:00:09]} Nxb2 {[%emt 0:03:22]} 20. Rfc1 {[%emt 0:00:16] Against Nc4} Bg6 {[%emt 0:09:00] And now ...Bd2 would win.} 21. Nf4 {[%emt 0:03:37]} Na4 $1 {[%emt 0:03:58]} 22. Nxg6 {[%emt 0:02:30]} hxg6 {[%emt 0:00:04]} 23. Rc4 {[%emt 0:00:46]} a5 {[%emt 0:00:02]} 24. a3 $1 {[%emt 0:01:15]} Nb6 {[%emt 0:00:15]} 25. Rc2 {[%emt 0:00:28]} Bd6 {[%emt 0:03:18]} 26. Rb1 {[%emt 0:00:09]} (26. Rb2 $5 {[%cal Rb2b6]} Nc4 27. Rxb7 $11) 26... Nd5 {[%emt 0:00:35]} 27. Rxb7 {[%emt 0:02:40]} Bxa3 {[%emt 0:00:09]} 28. Rxc6 {[%emt 0:01:57][%cal Bc2c6,Bc6a6,Ba6a5][%mdl 32]} O-O {[%emt 0:01:09]} 29. Ra6 {[%emt 0:01:51]} Rb8 {[%emt 0:02:18]} 30. Rxb8 {[%emt 0:03:11]} Rxb8 {[%emt 0:00:01]} 31. Bf1 {[%emt 0:00:30]} ({Much worse is} 31. Rxa5 Rb1+ 32. Bg1 Bc1 $17) 31... Rb1 {[%emt 0:02:22]} 32. Kg2 {[%emt 0:00:33]} Bc1 {[%emt 0:07:05]} 33. Rxa5 {[%emt 0:00:08]} Ne3+ {[%emt 0:00:18]} 34. Bxe3 {[%emt 0:00:04]} Bxe3 $14 {[%emt 0:00:10][%mdl 4096] Endgame KRB-KRB} 35. d5 {[%emt 0:00:04]} exd5 {[%emt 0:00:11]} 36. Rxd5 {[%emt 0:00:06]} g5 {[%emt 0:02:19]} 37. Rd3 {[%emt 0:01:13]} Bb6 {[%emt 0:01:33]} 38. Rd7 {[%emt 0:01:45]} Be3 {[%emt 0:01:10]} 39. Rd8+ {[%emt 0:00:36]} Kh7 {[%emt 0:02:01]} 40. Rd3 {[%emt 0:00:03]} Bc5 {[%emt 0:00:00]} 41. Rd7 {[%emt 0:00:12]} f5 {[%emt 0:00:29]} (41... f6 $11 {keeps the balance.}) 42. Rd5 $16 {[%emt 0:00:12][%csl LRc5,LRf5]} Be3 {[%emt 0:00:11]} 43. Rxf5 {[%emt 0:00:09]} Kg6 {[%emt 0:00:05]} 44. Re5 {[%emt 0:00:19]} Bd4 {[%emt 0:00:14]} 45. Re6+ {[%emt 0:01:08] White is clearly better.} Kf7 {[%emt 0:02:01]} 46. Re4 {[%emt 0:00:19]} Bb6 {[%emt 0:00:00]} 47. e3 {[%emt 0:18:59]} Kf8 {[%emt 0:00:00]} 48. Re6 {[%emt 0:00:00] Weighted Error Value: White=0.05 (flawless) /Black=0.11 (very precise)} 1-0

[Event "Charlotte Summer IM C 2022"]
[Site "Charlotte"]
[Date "2022.07.25"]
[Round "1.3"]
[White "Luo, Terry"]
[Black "Rodriguez Rivera, Pedro"]
[Result "1-0"]
[ECO "D00"]
[WhiteElo "2204"]
[BlackElo "2192"]
[Annotator "TA"]
[PlyCount "87"]
[EventDate "2022.07.24"]
[EventType "tourn"]
[EventCountry "USA"]
[SourceTitle "playchess.com"]
[Source "ChessBase"]
[SourceQuality "1"]
[TimeControl "5400+30"]

{[%evp 9,87,-7,0,0,14,12,8,12,29,25,25,13,36,14,22,4,51,43,44,27,25,19,46,28,64,31,29,20,35,16,7,11,41,39,36,23,36,27,58,54,158,150,220,209,235,165,170,113,123,107,104,100,148,152,168,150,149,158,225,156,242,227,258,252,291,270,675,255,235,237,348,334,281,273,1069,1063,1012,979,4990,2044]} 1. d4 {[%emt 0:00:02]} Nf6 {[%emt 0:00:15]} 2. Nc3 {[%emt 0:00:42]} d5 {[%emt 0:01:57]} 3. Bf4 {[%emt 0:00:12]} Bf5 {[%emt 0:02:15]} 4. Nb5 {[%emt 0:02:19]} Na6 {[%emt 0:00:17]} 5. e3 {[%emt 0:00:06]} c6 {[%emt 0:00:26]} 6. Nc3 {[%emt 0:00:07] D00: 1 d4 d5: Unusual lines.} Nb4 {[%emt 0:10:01]} 7. Rc1 {[%emt 0:06:42]} Qa5 {[%emt 0:18:43]} 8. Qd2 $1 {[%emt 0:00:09] [#] The position is equal.} e6 $146 {[%emt 0:00:03]} ({Predecessor:} 8... e5 9. Bxe5 O-O-O 10. a3 Na6 11. Bd3 Bxd3 12. Bxf6 gxf6 13. Qxd3 Nc7 14. Qf5+ Kb8 {1-0 (40) Heyder,F (2174)-Kayser,F (2149) Germany 2018}) 9. a3 {[%emt 0:29:30]} Na6 {[%emt 0:00:08]} 10. Nf3 {[%emt 0:00:05][%cal Oc3e4]} h6 {[%emt 0:03:32]} 11. Bd3 {[%emt 0:01:56]} Bxd3 {[%emt 0:00:47]} 12. cxd3 {[%emt 0:00:02]} Rc8 {[%emt 0:02:18]} (12... Nh5 $11 {is more appropriate.}) 13. O-O $14 {[%emt 0:00:19]} Qd8 {[%emt 0:03:40]} 14. e4 {[%emt 0:03:24]} Be7 {[%emt 0:01:17]} 15. Rfe1 {[%emt 0:00:11]} Nc7 {[%emt 0:01:02]} 16. h3 {[%emt 0:05:25]} a6 {[%emt 0:03:59]} 17. e5 {[%emt 0:04:30] White is more active.} Nd7 {[%emt 0:00:49]} 18. Ne2 {[%emt 0:00:06][%cal Bc3e2,Be2g3,Bg3h5][%mdl 32]} Nb5 {[%emt 0:06:40]} 19. Ng3 {[%emt 0:10:03]} (19. a4 $5 {[%cal Ra4b5]} Nc7 20. b4 $11) 19... Qb6 {[%emt 0:01:24]} 20. Be3 {[%emt 0:00:09]} Na7 {[%emt 0:01:20]} 21. Nh5 {[%emt 0:02:51]} Kf8 {[%emt 0:01:04]} 22. Nh2 {[%emt 0:09:48]} Qd8 {[%emt 0:05:08]} 23. Rf1 {[%emt 0:05:02]} c5 {[%emt 0:04:16]} 24. dxc5 {[%emt 0:06:13]} Nxc5 {[%emt 0:03:56]} (24... Bxc5 $14 25. Bxc5+ Nxc5) 25. b4 $16 {[%emt 0:02:59][%cal Re3c5]} d4 {[%emt 0:01:41]} (25... Nb3 $16 {was called for.} 26. Rxc8 Qxc8) 26. bxc5 $18 {[%emt 0:01:36]} dxe3 {[%emt 0:00:02]} 27. Qxe3 {[%emt 0:00:22]} Nc6 {[%emt 0:03:05]} 28. Nf3 {[%emt 0:00:25] Inhibits Nd4.} ({White should play} 28. Rfd1 $18) 28... Bg5 $16 {[%emt 0:01:03]} 29. Nf4 {[%emt 0:01:46]} Bxf4 {[%emt 0:01:10]} 30. Qxf4 {[%emt 0:00:01]} Qd5 {[%emt 0:02:10]} (30... Qxd3 $142 31. Rfd1 Qf5 32. Qxf5 exf5) 31. d4 {[%emt 0:01:08]} Ke7 {[%emt 0:01:06]} 32. Rb1 {[%emt 0:00:34]} Rc7 {[%emt 0:00:02]} 33. Qg4 {[%emt 0:00:37]} Rg8 {[%emt 0:00:48]} (33... Kf8 $16 {might work better.} 34. Rb6 g6) 34. Rb6 $18 {[%emt 0:00:28]} Kd7 {[%emt 0:00:17]} (34... Kd8 $16 35. Rfb1 Kc8) 35. Nd2 $1 {[%emt 0:01:34][%cal Bf3d2,Bd2e4,Be4d6][%mdl 32] And now Rfb1 would win.} Kc8 {[%emt 0:00:58] [#]} (35... Qxd4 $2 36. Rxc6 $1 {[%mdl 512]} Qxg4 37. Rxc7+ Kxc7 38. hxg4 $18) 36. Ne4 $1 {[%emt 0:00:15] Strongly threatening Nd6+.} Kb8 {[%emt 0:05:50]} 37. Nd6 {[%emt 0:00:22] Rfb1 is the strong threat.} Qxd4 $2 {[%emt 0:05:21]} (37... Ka8 38. Rd1 Ne7) 38. Qxd4 $2 {[%emt 0:01:02]} (38. Qe2 {White threatens Qxa6 and mate.} Qa4 39. Rfb1) 38... Nxd4 {[%emt 0:10:40]} 39. Rfb1 $1 {[%emt 0:00:02][%csl LRa6,LRb7]} Nb5 {[%emt 0:00:00]} (39... Ka8 $142 40. Nxb7 Ka7) 40. a4 {[%emt 0:01:18]} ({Not} 40. Nxb5 axb5 41. R6xb5 (41. R1xb5 Ka7 $14) 41... Ka8 $16) 40... Nxd6 {[%emt 0:00:00]} 41. exd6 {[%emt 0:00:14] Threatens to win with c6.} ({Don't take} 41. cxd6 $6 Rd7 42. Rxa6 Rc8 $16) 41... Rd7 $2 {[%emt 0:00:00]} (41... Rxc5 42. Rxb7+ Ka8 43. Rxf7 Rc6) 42. c6 {[%emt 0:01:57][%cal Bc5c6,Bc6c7][%mdl 32] White is clearly winning.} Rxd6 {[%emt 0:00:00]} 43. Rxb7+ {[%emt 0:00:03]} Ka8 {[%emt 0:00:00]} 44. c7 {[%emt 0:00:05] Weighted Error Value: White=0.23 (precise) /Black=0.40} 1-0

[Event "Charlotte Summer IM C 2022"]
[Site "Charlotte"]
[Date "2022.07.25"]
[Round "1.4"]
[White "Xie, Bryan"]
[Black "Arjun, Vishnuvardhan"]
[Result "0-1"]
[ECO "B06"]
[WhiteElo "2191"]
[BlackElo "2273"]
[Annotator "TA"]
[PlyCount "96"]
[EventDate "2022.07.24"]
[EventType "tourn"]
[EventCountry "USA"]
[SourceTitle "playchess.com"]
[Source "ChessBase"]
[SourceQuality "1"]
[TimeControl "5400+30"]

{[%evp 12,96,51,30,22,27,39,40,54,54,75,57,129,131,166,170,181,179,157,136,136,119,106,114,113,99,110,113,149,150,162,157,137,119,120,108,124,146,160,100,98,95,119,125,168,162,165,181,168,176,184,181,174,174,178,131,127,137,133,98,112,60,64,0,7,0,12,0,0,-256,-253,-570,-558,-561,-546,-541,-554,-555,-556,-564,-562,-558,-547,-475,-429,-415,-407]} 1. e4 {[%emt 0:00:18] Erenburg,S} g6 {[%emt 0:07:03]} 2. d4 {[%emt 0:00:18]} Bg7 {[%emt 0:00:02]} 3. Nf3 {[%emt 0:00:53]} d6 {[%emt 0:00:06]} 4. Nc3 {[%emt 0:01:47]} a6 {[%emt 0:00:16]} 5. a4 {[%emt 0:02:46]} Bg4 {[%emt 0:05:06]} 6. Be2 {[%emt 0:03:40]} Nc6 {[%emt 0:01:49]} 7. Be3 {[%emt 0:02:25]} (7. d5 $5 {[%cal Rd5c6]} Bxf3 8. Bxf3 $14 (8. gxf3 Nd4 $11)) 7... e5 {[%emt 0:01:21] Strongly threatening ...Bxf3. B06: Modern Defence.} 8. dxe5 {[%emt 0:04:41] 8.dxe5 scores better than 8.d5.} Bxf3 {[%emt 0:04:59]} 9. Bxf3 {[%emt 0:01:08]} Nxe5 {[%emt 0:00:06] White is slightly better.} 10. Be2 {[%emt 0:00:14]} Ne7 {[%emt 0:00:12]} 11. O-O {[%emt 0:02:45]} f5 {[%emt 0:05:39]} (11... Qd7 $14) 12. Bg5 {[%emt 0:09:25] [#] Threatens to win with Nd5.} O-O $146 {[%emt 0:04:20]} ({Predecessor:} 12... Qd7 13. Bxe7 Qxe7 14. Nd5 Qf7 15. f4 Nc6 16. Bc4 Bd4+ 17. Kh1 Qg7 18. c3 Bf6 19. exf5 {1-0 (48) Sevillano,E (2490)-Minasian,A (2571) Los Angeles 2003 CBM 097 [Erenburg,S]}) 13. Nd5 {[%emt 0:01:10]} N5c6 {[%emt 0:00:14]} 14. Bc4 {[%emt 0:00:51][%csl LRc7,LRe7]} Kh8 {[%emt 0:00:43]} 15. Re1 {[%emt 0:11:15]} Qd7 {[%emt 0:01:47]} 16. e5 {[%emt 0:05:06][%cal Od5c7] And now Nxc7! would win.} Nxd5 {[%emt 0:13:31]} 17. e6 {[%emt 0:00:17]} Qe8 {[%emt 0:08:59]} 18. Qxd5 {[%emt 0:02:31]} Bf6 {[%emt 0:00:47] Inhibits e7.} 19. Bh6 $36 {[%emt 0:18:34][%mdl 2048] White is on the roll.} Bg7 {[%emt 0:00:40]} 20. e7 {[%emt 0:00:39]} Bxh6 {[%emt 0:01:28]} 21. exf8=Q+ {[%emt 0:30:17]} Qxf8 {[%emt 0:00:02]} 22. Bb3 {[%emt 0:00:00]} Bg7 {[%emt 0:01:42]} 23. c3 {[%emt 0:00:00]} Be5 {[%emt 0:00:30]} 24. g3 {[%emt 0:00:00]} g5 {[%emt 0:00:25] Prevents f4.} 25. Qf7 {[%emt 0:00:00]} (25. a5 $142) 25... Qxf7 $16 {[%emt 0:01:54]} 26. Bxf7 {[%emt 0:02:30]} Rf8 {[%emt 0:00:11]} 27. Bd5 {[%emt 0:00:00]} Nd8 {[%emt 0:00:45]} 28. f4 {[%emt 0:00:00]} gxf4 {[%emt 0:00:23]} 29. gxf4 {[%emt 0:00:00]} Bxf4 {[%emt 0:00:07]} 30. Re7 {[%emt 0:00:00]} c6 {[%emt 0:02:20]} 31. Bb3 {[%emt 0:00:00][%mdl 1024] White has strong compensation.} Bg5 {[%emt 0:04:23]} 32. Rd7 {[%emt 0:00:00]} Be3+ {[%emt 0:01:07] [#]} 33. Kg2 {[%emt 0:00:05]} ({White should play} 33. Kf1 $1 $18) 33... d5 {[%emt 0:01:14]} 34. Bc2 {[%emt 0:01:08][%cal Oc2f5]} f4 {[%emt 0:06:30]} 35. Rxh7+ {[%emt 0:01:18]} Kg8 {[%emt 0:00:01]} 36. Kf3 {[%emt 0:00:59]} (36. Rd7 $16) 36... Nf7 $14 {[%emt 0:00:40] ...Ng5+ is the strong threat.} 37. Rh5 {[%emt 0:00:41] Inhibits Ng5+.} (37. Ke2 $14) 37... Kg7 {[%emt 0:00:02]} 38. h4 {[%emt 0:01:01]} Kf6 {[%emt 0:00:13]} 39. Rf5+ {[%emt 0:00:16]} Ke6 {[%emt 0:00:02]} 40. Ke2 $2 {[%emt 0:00:23][%mdl 8192]} (40. Rh1 $11 {and White is okay.}) 40... Rg8 $19 {[%emt 0:01:00] aiming for ...Rg2+.} 41. Bd3 $2 {[%emt 0:01:04]} (41. Rxf7 {was the crucial defense.} Kxf7 42. Bf5) 41... Rg2+ {[%emt 0:09:19][%mdl 64] [#] Skewer} 42. Kf3 {[%emt 0:00:01]} Rf2+ {[%emt 0:05:32]} 43. Kg4 {[%emt 0:00:01]} Nh6+ {[%emt 0:00:11]} 44. Kg5 {[%emt 0:00:03]} f3+ {[%emt 0:00:26]} 45. Kg6 {[%emt 0:00:32]} Nxf5 {[%emt 0:14:53]} 46. Bxf5+ {[%emt 0:00:07]} Ke5 {[%emt 0:00:00] White must now prevent ...Rg2+.} 47. Bd3 {[%emt 0:01:05]} Rg2+ {[%emt 0:00:00]} 48. Kf7 {[%emt 0:01:09]} Rh2 {[%emt 0:00:00] Weighted Error Value: White=0.33/Black=0.10 (very precise)} 0-1

[Event "Charlotte Summer IM C 2022"]
[Site "Charlotte"]
[Date "2022.07.25"]
[Round "1.5"]
[White "Adewumi, Tanitoluwa"]
[Black "Girones Barrios, Yans Richard"]
[Result "1-0"]
[ECO "A46"]
[WhiteElo "2309"]
[BlackElo "2412"]
[Annotator "TA"]
[PlyCount "101"]
[EventDate "2022.07.24"]
[EventType "tourn"]
[EventCountry "USA"]
[SourceTitle "playchess.com"]
[Source "ChessBase"]
[SourceQuality "1"]
[TimeControl "5400+30"]

{[%evp 9,101,3,4,-6,2,5,42,-2,0,-8,-7,0,0,-4,-7,-7,-2,0,5,4,10,17,39,0,0,-5,0,0,10,0,0,0,0,0,0,0,0,-38,-31,-32,0,0,0,0,0,0,0,0,7,4,23,26,22,20,32,17,22,25,65,68,59,49,137,0,0,0,114,88,356,347,310,256,327,370,467,430,466,379,660,546,383,8,1275,1275,1275,1275,1275,1088,29962,29963,29967,29958,2395,2395]} 1. d4 {[%emt 0:00:04]} Nf6 {[%emt 0:06:56]} 2. Nf3 {[%emt 0:01:36]} e6 {[%emt 0:00:40]} 3. Bf4 {[%emt 0:00:22]} c5 {[%emt 0:02:11]} 4. e3 {[%emt 0:00:10]} Nc6 {[%emt 1:22:43]} 5. Nbd2 {[%emt 1:30:48]} Be7 {[%emt 0:00:00]} 6. h3 {[%emt 0:00:30] A46: 1 d4 Nf6 2 Nf3 e6: Torre, London and Colle Systems.} O-O {[%emt 0:01:00]} 7. c3 {[%emt 0:00:30]} d6 {[%emt 0:00:30]} 8. Bd3 {[%emt 0:00:30] White is slightly better.} e5 {[%emt 0:00:00]} 9. Bh2 exd4 {[%emt 0:01:00]} 10. exd4 {[%emt 0:00:00]} cxd4 {[%emt 0:00:00]} 11. cxd4 {[%emt 0:00:00] [#]} Nb4 $146 {[%emt 0:00:00]} ({Predecessor:} 11... Be6 12. O-O Nb4 13. Bc4 d5 14. Bb3 Rc8 15. Ne5 Qb6 16. Ndf3 Ne4 17. a3 Nc6 18. Bxd5 Bxd5 19. Nd7 Qxb2 {½-½ (19) Ong,A (1361)-Campani,P (1450) ICCF email 2018}) 12. Bb1 {[%emt 0:02:00]} Be6 {[%emt 0:01:30]} 13. O-O {[%emt 0:00:00]} Re8 {[%emt 0:00:30]} 14. Ng5 {[%emt 0:00:00]} Bd5 {[%emt 0:00:00]} 15. a3 {[%emt 0:00:00]} h6 {[%emt 0:01:00]} 16. Nge4 {[%emt 0:02:00]} (16. Nxf7 $5 Bxf7 17. axb4 $14) 16... Nxe4 {[%emt 0:00:00]} 17. Nxe4 {[%emt 0:00:00]} Bxe4 {[%emt 0:00:00]} 18. Bxe4 {[%emt 0:00:00][%cal Bb1e4,Be4f3,Bf3d5][%mdl 32]} d5 {[%emt 0:00:00]} 19. Bf3 {[%emt 0:01:30] This bishop pair is nice.} ({Of course not} 19. axb4 dxe4 20. d5 Qb6) 19... Nc6 {[%emt 0:00:00]} 20. Re1 Bf6 {[%emt 0:02:30]} 21. Rxe8+ {[%emt 0:00:00]} Qxe8 {[%emt 0:00:00]} 22. Bxd5 Rd8 {[%emt 0:00:00]} 23. Qh5 Bxd4 {[%emt 0:00:00]} 24. Bg3 Bxb2 {[%emt 0:02:00]} (24... Qd7 $5 {[%cal Rd7d5]} 25. Bxc6 Qxc6 $15) 25. Rb1 {[%emt 0:00:00]} Qd7 {[%emt 0:00:00]} 26. Rxb2 ({Much worse is} 26. Bxc6 Qxc6 27. Qa5 Ra8 $1 $15) 26... Qxd5 {[%emt 0:01:00]} 27. Qxd5 Rxd5 {[%emt 0:00:00]} 28. Rxb7 $11 {[%mdl 4096] Endgame KRB-KRN} Rd1+ {[%emt 0:01:00]} 29. Kh2 {[%emt 0:00:00]} Rd3 {[%emt 0:00:30]} 30. Rc7 {[%emt 0:05:30]} Rc3 {[%emt 0:00:00]} 31. Bd6 {[%emt 0:00:30]} a6 {[%emt 0:00:00]} 32. f3 {[%emt 0:00:30]} Rc2 {[%emt 0:00:00]} 33. Kg3 {[%emt 0:00:00]} g5 34. Kg4 {[%emt 0:01:00] And now Kh5 would win.} Rc4+ {[%emt 0:02:30]} (34... Rxg2+ $2 35. Kh5 Rc2 36. Kxh6 $18) 35. Kf5 $1 {[%emt 0:00:00]} Kg7 {[%emt 0:00:30]} (35... Nd4+ $1 $14 36. Ke5 Rxc7 37. Bxc7 Nc2) 36. g3 ({White should try} 36. a4 $1 $16) 36... Nd4+ {[%emt 0:00:00]} 37. Ke4 {[%emt 0:00:00]} Rxc7 {[%emt 0:00:00]} (37... Nb5+ $11 38. Rxc4 Nxd6+ 39. Kd5 Nxc4 40. Kxc4 Kf6) 38. Bxc7 {[%emt 0:00:00] KB-KN} Nb5 $2 {[%emt 0:00:00][%mdl 8192] [#]} (38... Nb3 $16) 39. Be5+ $1 $18 {[%emt 0:02:30]} f6 40. Bb2 Nd6+ 41. Kd5 {[%emt 0:00:00]} Nf5 {[%emt 0:00:41]} 42. Kc5 {[%emt 0:00:00]} Nxg3 {[%emt 0:00:43]} 43. Kb6 {[%emt 0:00:00]} Nf1 $2 {[%emt 0:00:02]} (43... Nf5 44. Kxa6 Kf7) 44. Kxa6 {[%emt 0:00:00] a4 is the strong threat.} Nd2 {[%emt 0:00:03]} 45. Kb5 {[%emt 0:00:00] Against Nc4} (45. a4 $18 {Hoping for Kb5.} Kf7 46. Bc1) 45... Nxf3 $2 {[%emt 0:00:47][%mdl 8192]} (45... Kf7 $11) 46. a4 {[%emt 0:00:00][%cal Ba3a4,Ba4a5][%mdl 32]} h5 {[%emt 0:00:13]} 47. a5 {[%emt 0:00:00] Intending a6 and mate.} g4 {[%emt 0:01:08]} 48. hxg4 {[%emt 0:00:00]} h4 {[%emt 0:01:54] [#]} 49. Bc1 $1 {[%emt 0:00:00]} ({Worse is} 49. a6 h3 50. a7 h2 $11) 49... Nd4+ {[%emt 0:01:29]} 50. Kb6 {[%emt 0:00:00]} h3 {[%emt 0:00:00]} 51. Bf4 {[%emt 0:00:00] Weighted Error Value: White=0.27 (precise) /Black=0.49} 1-0